fUSD/lending_fUSD_20240508
["ID","MTS","AMOUNT","RATE_DAILY","PERIOD"]
[326671205,1715211088276,-500.0,0.00029589,5]
[326671206,1715211088286,-154.61,0.00029589,5]
[326671207,1715211088295,-500.0,0.00029589,5]
[326671208,1715211088305,-833.92,0.00029589,5]
[326671209,1715211088314,-500.0,0.00029589,5]
[326671210,1715211088324,-1475.61,0.00029589,5]
[326671211,1715211088333,-500.0,0.00029589,5]
[326671212,1715211088343,-456.97,0.00029589,5]
[326671213,1715211088353,-1801.26,0.00029589,5]
[326671214,1715211088362,-228.34,0.00029589,5]
[326671215,1715211088372,-731.06,0.00029589,5]
[326671216,1715211088382,-500.0,0.00029589,2]
[326671217,1715211088391,-251.8,0.00029589,5]
[326671218,1715211088401,-500.0,0.00029589,5]
[326671219,1715211088411,-185.14,0.00029589,5]
[326671220,1715211088422,-1189.61,0.00029589,5]
[326671221,1715211088432,-1307.46,0.00029589,5]
[326671222,1715211088441,-2119.18,0.00029589,5]
[326671223,1715211088451,-286.39,0.00029589,5]
[326671224,1715211088460,-641.82,0.00029589,5]
[326671225,1715211088471,-1267.41,0.00029589,5]
[326671226,1715211088480,-500.0,0.00029589,5]
[326671227,1715211088490,-500.0,0.00029589,5]
[326671228,1715211088499,-206.56,0.00029589,5]
[326671229,1715211088509,-500.0,0.00029589,5]
[326671230,1715211088518,-516.3,0.00029589,5]
[326671231,1715211088528,-500.0,0.00029589,5]
[326671232,1715211088538,-500.0,0.00029589,5]
[326671233,1715211088548,-368.64,0.00029589,5]
[326671234,1715211088558,-500.0,0.00029589,5]
[326671235,1715211088568,-500.0,0.00029589,5]
[326671236,1715211088578,-2032.81,0.00029589,5]
[326671237,1715211088587,-209.27923061,0.00029589,5]
[326671238,1715211088596,-500.0,0.00029589,5]
[326671239,1715211088606,-605.34,0.00029589,5]
[326671240,1715211088615,-750.62,0.00029589,5]
[326671241,1715211088625,-341.28,0.00029589,5]
[326671242,1715211088636,-1104.78,0.00029589,5]
[326671243,1715211088645,-500.0,0.00029589,5]
[326671244,1715211088655,-591.91,0.00029589,5]
[326671245,1715211088664,-500.0,0.00029589,5]
[326671246,1715211088674,-500.0,0.00029589,5]
[326671247,1715211088683,-772.47,0.00029589,5]
[326671248,1715211088694,-500.0,0.00029589,5]
[326671249,1715211088705,-500.0,0.00029589,5]
[326671250,1715211088714,-877.02,0.00029589,5]
[326671251,1715211088724,-631.88,0.00029589,5]
[326671252,1715211088734,-652.49,0.00029589,5]
[326671253,1715211088743,-1126.75,0.00029589,5]
[326671254,1715211088752,-545.53,0.00029589,5]
[326671255,1715211088761,-176.11,0.00029589,5]
[326671256,1715211088770,-500.0,0.00029589,5]
[326671257,1715211088780,-2274.22,0.00029589,5]
[326671258,1715211088789,-262.74,0.00029589,5]
[326671259,1715211088798,-2122.47,0.00029589,5]
[326671260,1715211088807,-508.45,0.00029589,5]
[326671261,1715211088816,-500.0,0.00029589,5]
[326671262,1715211088826,-500.0,0.00029589,5]
[326671263,1715211088834,-500.0,0.00029589,5]
[326671264,1715211088845,-500.0,0.00029589,5]
[326671265,1715211088854,-1233.88,0.00029589,5]
[326671266,1715211088863,-500.0,0.00029589,5]
[326671267,1715211088872,-500.0,0.00029589,5]
[326671268,1715211088882,-500.0,0.00029589,5]
[326671269,1715211088891,-3283.26,0.00029589,5]
[326671270,1715211088900,-500.0,0.00029589,5]
[326671271,1715211088909,-500.0,0.00029589,5]
[326671272,1715211088919,-500.0,0.00029589,5]
[326671273,1715211088929,-637.42,0.00029589,5]
[326671274,1715211088938,-1666.16,0.00029589,5]
[326671275,1715211088947,-184.81,0.00029589,5]
[326671276,1715211088956,-791.92,0.00029589,5]
[326671277,1715211088966,-2851.63,0.00029589,5]
[326671278,1715211088976,-500.0,0.00029589,5]
[326671279,1715211088985,-571.1,0.00029589,5]
[326671280,1715211088994,-559.93,0.00029589,5]
[326671281,1715211089005,-500.0,0.00029589,5]
[326671282,1715211089014,-150.0,0.00029589,5]
[326671283,1715211089023,-642.22,0.00029589,5]
[326671284,1715211089032,-525.85,0.00029589,5]
[326671285,1715211089041,-1058.32,0.00029589,5]
[326671286,1715211089050,-583.26,0.00029589,5]
[326671287,1715211089059,-500.0,0.00029589,5]
[326671288,1715211089068,-500.0,0.00029589,5]
[326671289,1715211089082,-500.0,0.00029589,5]
[326671290,1715211089091,-500.0,0.00029589,5]
[326671291,1715211089100,-211.99,0.00029589,5]
[326671292,1715211089109,-538.06,0.00029589,5]
[326671293,1715211089118,-513.55,0.00029589,5]
[326671294,1715211089127,-500.0,0.00029589,5]
[326671295,1715211089136,-500.0,0.00029589,5]
[326671296,1715211089145,-950.58,0.00029589,5]
[326671297,1715211089154,-500.0,0.00029589,5]
[326671298,1715211089165,-500.0,0.00029589,5]
[326671299,1715211089175,-500.0,0.00029589,5]
[326671300,1715211089186,-677.43,0.00029589,5]
[326671301,1715211089195,-947.25,0.00029589,5]
[326671302,1715211089205,-500.0,0.00029589,5]
[326671303,1715211089214,-713.48,0.00029589,5]
[326671304,1715211089223,-500.0,0.00029589,5]
[326671305,1715211089232,-500.0,0.00029589,5]
[326671306,1715211089241,-500.0,0.00029589,5]
[326671307,1715211089250,-500.0,0.00029589,5]
[326671308,1715211089260,-1739.82,0.00029589,5]
[326671309,1715211089269,-500.0,0.00029589,5]
[326671310,1715211089279,-2303.36,0.00029589,5]
[326671311,1715211089289,-1361.94,0.00029589,5]
[326671312,1715211089298,-500.0,0.00029589,5]
[326671313,1715211089308,-500.0,0.00029589,5]
[326671314,1715211089317,-720.9,0.00029589,5]
[326671315,1715211089326,-606.42,0.00029589,5]
[326671316,1715211089335,-500.0,0.00029589,5]
[326671317,1715211089345,-676.05,0.00029589,5]
[326671318,1715211089354,-500.0,0.00029589,5]
[326671319,1715211089363,-1265.5,0.00029589,5]
[326671320,1715211089372,-15344.84,0.00029589,5]
[326671321,1715211089382,-500.0,0.00029589,5]
[326671322,1715211089392,-973.48,0.00029589,5]
[326671323,1715211089401,-500.0,0.00029589,5]
[326671324,1715211089410,-717.57,0.00029589,5]
[326671325,1715211089420,-500.0,0.00029589,5]
[326671326,1715211089429,-2891.19,0.00029589,5]
[326671327,1715211089438,-354.41,0.00029589,5]
[326671328,1715211089447,-625.25,0.00029589,5]
[326671329,1715211089456,-1612.72,0.00029589,5]
[326671330,1715211089465,-1861.79,0.00029589,5]
[326671331,1715211089474,-616.25,0.00029589,5]
[326671332,1715211089483,-553.47,0.00029589,5]
[326671333,1715211089492,-500.0,0.00029589,5]
[326671334,1715211089502,-500.0,0.00029589,5]
[326671335,1715211089511,-500.0,0.00029589,5]
[326671336,1715211089522,-516.16,0.00029589,5]
[326671337,1715211089532,-556.61,0.00029589,5]
[326671338,1715211089541,-1640.26,0.00029589,5]
[326671339,1715211089551,-7574.71,0.00029589,5]
[326671340,1715211089559,-500.0,0.00029589,5]
[326671341,1715211089569,-500.0,0.00029589,5]
[326671342,1715211089578,-548.72,0.00029589,5]
[326671343,1715211089587,-500.0,0.00029589,5]
[326671344,1715211089596,-500.0,0.00029589,5]
[326671345,1715211089605,-1384.0,0.00029589,5]
[326671346,1715211089613,-681.86,0.00029589,5]
[326671347,1715211089623,-500.0,0.00029589,5]
[326671348,1715211089632,-521.82,0.00029589,5]
[326671349,1715211089641,-1064.68,0.00029589,5]
[326671350,1715211089651,-500.0,0.00029589,5]
[326671351,1715211089660,-809.02,0.00029589,5]
[326671352,1715211089785,-547.79,0.00029589,5]
[326671353,1715211089795,-637.32,0.00029589,5]
[326671354,1715211089805,-500.0,0.00029589,5]
[326671355,1715211089814,-500.0,0.00029589,5]
[326671356,1715211089823,-1230.97,0.00029589,5]
[326671357,1715211089833,-2762.28,0.00029589,5]
[326671358,1715211089842,-500.0,0.00029589,5]
[326671359,1715211089852,-500.0,0.00029589,5]
[326671360,1715211089861,-500.0,0.00029589,5]
[326671361,1715211089871,-500.0,0.00029589,5]
[326671362,1715211089880,-1888.29,0.00029589,5]
[326671363,1715211089890,-500.0,0.00029589,5]
[326671364,1715211089900,-500.0,0.00029589,5]
[326671365,1715211089909,-151.0,0.00029589,7]
[326671366,1715211089920,-500.0,0.00029589,5]
[326671367,1715211089929,-500.0,0.00029589,5]
[326671368,1715211089939,-500.0,0.00029589,5]
[326671369,1715211089949,-500.0,0.00029589,5]
[326671370,1715211089959,-500.0,0.00029589,5]
[326671371,1715211089968,-500.0,0.00029589,5]
[326671372,1715211089978,-500.0,0.00029589,5]
[326671373,1715211089987,-500.0,0.00029589,5]
[326671374,1715211089997,-927.93,0.00029589,5]
[326671375,1715211090006,-500.0,0.00029589,5]
[326671376,1715211090015,-151.0,0.00029589,7]
[326671377,1715211090025,-2147.38,0.00029589,5]
[326671378,1715211090043,-500.0,0.00029589,5]
[326671379,1715211090061,-550.85,0.00029589,5]
[326671380,1715211090071,-4355.07,0.00029589,5]
[326671381,1715211090086,-719.21,0.00029589,5]
[326671382,1715211090096,-500.0,0.00029589,5]
[326671383,1715211090106,-500.0,0.00029589,5]
[326671384,1715211090117,-500.0,0.00029589,5]
[326671385,1715211090126,-5640.89,0.00029589,5]
[326671386,1715211090136,-603.52,0.00029589,5]
[326671387,1715211090146,-500.0,0.00029589,2]
[326671388,1715211090157,-500.0,0.00029589,5]
[326671389,1715211090167,-1938.92,0.00029589,5]
[326671390,1715211090177,-729.49,0.00029589,5]
[326671391,1715211090187,-625.3,0.00029589,5]
[326671392,1715211090197,-2468.99,0.00029589,5]
[326671393,1715211090207,-659.92,0.00029589,5]
[326671394,1715211090216,-270.5,0.00029589,5]
[326671395,1715211090226,-500.0,0.00029589,5]
[326671396,1715211090236,-1216.95,0.00029589,5]
[326671397,1715211090245,-500.0,0.00029589,5]
[326671398,1715211090255,-500.0,0.00029589,5]
[326671399,1715211090265,-500.0,0.00029589,5]
[326671400,1715211090274,-701.13,0.00029589,5]
[326671401,1715211090286,-380.14,0.00029589,5]
[326671402,1715211090296,-500.0,0.00029589,5]
[326671403,1715211090306,-500.0,0.00029589,5]
[326671404,1715211090315,-585.68,0.00029589,5]
[326671405,1715211090325,-453.04876286,0.00029589,2]
[326671406,1715211090335,-1972.8,0.00029589,5]
[326671407,1715211090344,-2652.59,0.00029589,5]
[326671408,1715211090354,-774.16,0.00029589,5]
[326671409,1715211090364,-770.12,0.00029589,5]
[326671410,1715211090374,-495.56,0.00029589,5]
[326671411,1715211090383,-500.0,0.00029589,5]
[326671412,1715211090393,-500.0,0.00029589,5]
[326671413,1715211090403,-662.61,0.00029589,5]
[326671414,1715211090414,-1276.97,0.00029589,5]
[326671415,1715211090424,-9085.77,0.00029589,5]
[326671416,1715211090433,-853.81,0.00029589,5]
[326671417,1715211090442,-500.0,0.00029589,5]
[326671418,1715211090452,-2931.87,0.00029589,5]
[326671419,1715211090461,-513.35,0.00029589,5]
[326671420,1715211090470,-1545.27,0.00029589,5]
[326671421,1715211090479,-1530.24,0.00029589,5]
[326671422,1715211090488,-574.26,0.00029589,5]
[326671423,1715211090498,-1472.47,0.00029589,5]
[326671424,1715211090507,-500.0,0.00029589,5]
[326671425,1715211090517,-1041.1,0.00029589,5]
[326671426,1715211090526,-692.328594,0.00029589,14]
[326671427,1715211090535,-386.99363453,0.00029596,2]
[326671428,1715211090544,-433.99,0.000296,2]
[326671429,1715211090553,-395.37001581,0.00029616,2]
[326671430,1715211090563,-150.59238323,0.00029658,2]
[326671431,1715211090572,-297.887,0.0002967,2]
[326671432,1715211090582,-3040.70194323,0.000297,8]
[326671433,1715211090591,-386.99363453,0.000297,2]
[326671434,1715211090600,-237.29863266,0.00029712,2]
[326671435,1715211090609,-209.0,0.0002975,2]
[326671436,1715211090619,-152.63771474,0.00029789,2]
[326671437,1715211090628,-2622.40862043,0.00029798,28]
[326671438,1715211090637,-167.0,0.00029806,2]
[326671439,1715211090652,-237.29863266,0.00029834,2]
[326671440,1715211090669,-6475.18751257,0.00029861,2]
[326671441,1715211090678,-1000.0,0.00029892,2]
[326671442,1715211090689,-63764.6377184,0.000299,2]
[326671443,1715211091015,-8871.55110712,0.000299,2]
[326671444,1715211091024,-2741.44982077,0.000299,10]
[326671445,1715211091033,-484.0,0.000299,14]
[326671446,1715211091043,-2829.8,0.000299,30]
[326671447,1715211091052,-971.0,0.000299,14]
[326671448,1715211091062,-2046.0,0.000299,2]
[326671449,1715211091073,-150.59238323,0.00029916,2]
[326671450,1715211091086,-152.88447539,0.00029936,2]
[326671451,1715211091096,-1000.0,0.00029946,2]
[326671452,1715211091105,-154.55367259,0.00029958,2]
[326671453,1715211091115,-665.10938126,0.0003,4]
[326671454,1715211091124,-8116.35531393,0.0003,2]
[326671455,1715211091134,-19364.69440357,0.0003,4]
[326671456,1715211091143,-3721.41924182,0.0003,10]
[326671457,1715211091152,-80890.0,0.0003,10]
[326671458,1715211091164,-350.0,0.0003,2]
[326671459,1715211091174,-10099.62215679,0.0003,5]
[326671460,1715211091184,-2177.36649149,0.0003,2]
[326671461,1715211091193,-2002.77194097,0.0003,10]
[326671462,1715211091203,-158.24940079,0.0003,4]
[326671463,1715211091212,-10000.0,0.0003,15]
[326671464,1715211091221,-163.37283134,0.0003,2]
[326671465,1715211091231,-160.0,0.0003,2]
[326671466,1715211091240,-4711.2115479,0.0003,15]
[326671467,1715211091250,-43529.49984084,0.0003,10]
[326671468,1715211091259,-1147.08444075,0.0003,5]
[326671469,1715211091269,-375.69214849,0.0003,2]
[326671470,1715211091278,-347.77567057,0.0003,2]
[326671471,1715211091288,-574.06584723,0.0003,7]
[326671472,1715211091298,-1704.69908196,0.0003,2]
[326671473,1715211091307,-1401.0,0.0003,2]
[326671474,1715211091316,-1000.0,0.0003,5]
[326671475,1715211091326,-4448.55176745,0.0003,3]
[326671476,1715211091335,-21869.26902877,0.0003,120]
[326671477,1715211091344,-832.13626007,0.0003,120]
[326671478,1715211091353,-150.50196201,0.0003,2]
[326671479,1715211091363,-500.0,0.0003,120]
[326671480,1715211091372,-500.0,0.0003,3]
[326671481,1715211091381,-8634.12049901,0.0003,2]
[326671482,1715211091391,-32985.7426,0.0003,30]
[326671483,1715211091400,-780.44362124,0.0003,4]
[326671484,1715211091409,-225.581298,0.0003,7]
[326671485,1715211091420,-151.0,0.0003,7]
[326671486,1715211091429,-193.808263,0.0003,7]
[326671487,1715211091438,-246.59202,0.0003,7]
[326671488,1715211091449,-193.808263,0.0003,7]
[326671489,1715211091459,-500.0,0.0003,2]
[326671490,1715211091468,-151.0,0.0003,7]
[326671491,1715211091479,-151.0,0.0003,7]
[326671492,1715211091488,-151.0,0.0003,7]
[326671493,1715211091498,-151.0,0.0003,7]
[326671494,1715211091508,-151.0,0.0003,7]
[326671495,1715211091517,-13999.9998462,0.0003,4]
[326671496,1715211091527,-13999.9998462,0.0003,4]
[326671497,1715211091536,-13999.9998462,0.0003,4]
[326671498,1715211091545,-13999.9998462,0.0003,4]
[326671499,1715211091555,-13999.9998462,0.0003,4]
[326671500,1715211091564,-13999.9998462,0.0003,4]
[326671501,1715211091574,-13999.9998462,0.0003,4]
[326671502,1715211091583,-13999.9998462,0.0003,4]
[326671503,1715211091593,-207.0,0.0003,2]
[326671504,1715211091603,-151.0,0.0003,7]
[326671505,1715211091614,-296.318047,0.0003,7]
[326671506,1715211091624,-152.53780723,0.00030059,7]
[326671507,1715211091633,-208.77,0.000301,2]
[326671508,1715211091643,-2339.18,0.00030136,5]
[326671509,1715211091652,-500.0,0.00030136,5]
[326671510,1715211091662,-500.0,0.00030136,5]
[326671511,1715211091671,-500.0,0.00030136,5]
[326671512,1715211091803,-500.0,0.00030136,5]
[326671513,1715211091816,-1423.64,0.00030136,5]
[326671514,1715211091827,-500.0,0.00030136,5]
[326671515,1715211091836,-500.0,0.00030136,5]
[326671516,1715211091845,-500.0,0.00030136,5]
[326671517,1715211091854,-902.92,0.00030136,5]
[326671518,1715211091863,-500.0,0.00030136,5]
[326671519,1715211091872,-165.54,0.00030136,5]
[326671520,1715211091881,-500.0,0.00030136,5]
[326671521,1715211091890,-500.0,0.00030136,5]
[326671522,1715211091899,-206.21,0.00030136,5]
[326671523,1715211091908,-500.0,0.00030136,5]
[326671524,1715211091917,-1452.27,0.00030136,5]
[326671525,1715211091927,-446.85,0.00030136,5]
[326671526,1715211091939,-500.0,0.00030136,5]
[326671527,1715211091948,-1175.22,0.00030136,5]
[326671528,1715211091957,-500.0,0.00030136,5]
[326671529,1715211091966,-500.0,0.00030136,5]
[326671530,1715211091975,-500.0,0.00030136,5]
[326671531,1715211091984,-500.0,0.00030136,5]
[326671532,1715211091993,-500.0,0.00030136,5]
[326671533,1715211092002,-500.0,0.00030136,5]
[326671534,1715211092011,-1619.48,0.00030136,5]
[326671535,1715211092020,-684.52,0.00030136,5]
[326671536,1715211092030,-539.2095943,0.00030136,2]
[326671537,1715211092039,-500.0,0.00030136,5]
[326671538,1715211092048,-584.34,0.00030136,5]
[326671539,1715211092059,-500.0,0.00030136,5]
[326671540,1715211092068,-500.0,0.00030136,5]
[326671541,1715211092082,-654.86,0.00030136,5]
[326671542,1715211092091,-500.0,0.00030136,5]
[326671543,1715211092100,-500.0,0.00030136,5]
[326671544,1715211092109,-500.0,0.00030136,5]
[326671545,1715211092119,-500.0,0.00030136,5]
[326671546,1715211092129,-610.54,0.00030136,5]
[326671547,1715211092138,-200.0,0.00030136,10]
[326671548,1715211092148,-394.98,0.00030136,10]
[326671549,1715211092158,-500.0,0.00030136,5]
[326671550,1715211092168,-500.0,0.00030136,5]
[326671551,1715211092177,-500.0,0.00030136,5]
[326671552,1715211092187,-285.59,0.00030136,5]
[326671553,1715211092196,-500.0,0.00030136,5]
[326671554,1715211092206,-500.0,0.00030136,5]
[326671555,1715211092216,-500.0,0.00030136,5]
[326671556,1715211092226,-1074.15,0.00030136,5]
[326671557,1715211092235,-500.0,0.00030136,5]
[326671558,1715211092244,-500.0,0.00030136,5]
[326671559,1715211092253,-500.0,0.00030136,5]
[326671560,1715211092262,-500.0,0.00030136,5]
[326671561,1715211092271,-2498.14,0.00030136,5]
[326671562,1715211092280,-300.0,0.00030136,2]
[326671563,1715211092291,-500.0,0.00030136,5]
[326671564,1715211092300,-500.0,0.00030136,5]
[326671565,1715211092309,-500.0,0.00030136,5]
[326671566,1715211092318,-1087.96,0.00030136,5]
[326671567,1715211092328,-500.0,0.00030136,5]
[326671568,1715211092336,-453.03,0.00030136,5]
[326671569,1715211092346,-500.0,0.00030136,5]
[326671570,1715211092355,-500.0,0.00030136,5]
[326671571,1715211092364,-500.0,0.00030136,5]
[326671572,1715211092374,-500.0,0.00030136,5]
[326671573,1715211092383,-1553.68,0.00030136,5]
[326671574,1715211092392,-500.0,0.00030136,5]
[326671575,1715211092402,-500.0,0.00030136,5]
[326671576,1715211092411,-783.0,0.00030136,5]
[326671577,1715211092420,-1248.88,0.00030136,5]
[326671578,1715211092429,-500.0,0.00030136,5]
[326671579,1715211092439,-2737.72,0.00030136,5]
[326671580,1715211092448,-500.0,0.00030136,5]
[326671581,1715211092458,-500.0,0.00030136,5]
[326671582,1715211092467,-500.0,0.00030136,5]
[326671583,1715211092477,-500.0,0.00030136,5]
[326671584,1715211092486,-500.0,0.00030136,5]
[326671585,1715211092495,-1364.86,0.00030136,5]
[326671586,1715211092503,-500.0,0.00030136,5]
[326671587,1715211092513,-1357.36,0.00030136,5]
[326671588,1715211092523,-500.0,0.00030136,5]
[326671589,1715211092532,-574.35,0.00030136,5]
[326671590,1715211092542,-500.0,0.00030136,5]
[326671591,1715211092552,-500.0,0.00030136,5]
[326671592,1715211092561,-498.92,0.00030136,5]
[326671593,1715211092571,-500.0,0.00030136,5]
[326671594,1715211092580,-500.0,0.00030136,5]
[326671595,1715211092590,-457.91,0.00030136,5]
[326671596,1715211092599,-500.0,0.00030136,5]
[326671597,1715211092608,-500.0,0.00030136,5]
[326671598,1715211092619,-500.0,0.00030136,5]
[326671599,1715211092629,-565.57,0.00030136,5]
[326671600,1715211092638,-153.83,0.00030136,5]
[326671601,1715211092647,-500.0,0.00030136,5]
[326671602,1715211092657,-500.0,0.00030136,5]
[326671603,1715211092666,-833.92,0.00030136,5]
[326671604,1715211092676,-500.0,0.00030136,5]
[326671605,1715211092685,-1475.61,0.00030136,5]
[326671606,1715211092694,-500.0,0.00030136,5]
[326671607,1715211092704,-1801.26,0.00030136,5]
[326671608,1715211092713,-731.06,0.00030136,5]
[326671609,1715211092723,-500.0,0.00030136,2]
[326671610,1715211092732,-187.04,0.00030136,5]
[326671611,1715211092742,-1189.61,0.00030136,5]
[326671612,1715211092751,-1307.46,0.00030136,5]
[326671613,1715211092761,-2119.18,0.00030136,5]
[326671614,1715211092771,-1267.41,0.00030136,5]
[326671615,1715211092781,-500.0,0.00030136,5]
[326671616,1715211092790,-500.0,0.00030136,5]
[326671617,1715211092800,-500.0,0.00030136,5]
[326671618,1715211092811,-516.3,0.00030136,5]
[326671619,1715211092822,-622.56,0.00030136,5]
[326671620,1715211092833,-500.0,0.00030136,5]
[326671621,1715211092843,-591.27,0.00030136,5]
[326671622,1715211092855,-500.0,0.00030136,5]
[326671623,1715211092865,-2032.81,0.00030136,5]
[326671624,1715211092875,-500.0,0.00030136,5]
[326671625,1715211092886,-750.62,0.00030136,5]
[326671626,1715211092895,-1104.78,0.00030136,5]
[326671627,1715211092905,-394.83,0.00030136,5]
[326671628,1715211092915,-591.91,0.00030136,5]
[326671629,1715211092925,-500.0,0.00030136,5]
[326671630,1715211092934,-500.0,0.00030136,5]
[326671631,1715211092944,-772.47,0.00030136,5]
[326671632,1715211092954,-500.0,0.00030136,5]
[326671633,1715211092963,-500.0,0.00030136,5]
[326671634,1715211092973,-877.02,0.00030136,5]
[326671635,1715211092984,-631.88,0.00030136,5]
[326671636,1715211092993,-110.43281418,0.00030136,5]
[326671637,1715211093010,-542.05718582,0.00030136,5]
[326671638,1715211093019,-545.53,0.00030136,5]
[326671639,1715211093029,-1126.75,0.00030136,5]
[326671640,1715211093039,-500.0,0.00030136,5]
[326671641,1715211093049,-2274.22,0.00030136,5]
[326671642,1715211093058,-2122.47,0.00030136,5]
[326671643,1715211093068,-508.45,0.00030136,5]
[326671644,1715211093083,-500.0,0.00030136,5]
[326671645,1715211093093,-500.0,0.00030136,5]
[326671646,1715211093103,-500.0,0.00030136,5]
[326671647,1715211093113,-500.0,0.00030136,5]
[326671648,1715211093125,-500.0,0.00030136,5]
[326671649,1715211093134,-500.0,0.00030136,5]
[326671650,1715211093144,-500.0,0.00030136,5]
[326671651,1715211093154,-3283.26,0.00030136,5]
[326671652,1715211093164,-500.0,0.00030136,5]
[326671653,1715211093174,-500.0,0.00030136,5]
[326671654,1715211093184,-500.0,0.00030136,5]
[326671655,1715211093194,-1233.88,0.00030136,5]
[326671656,1715211093204,-637.42,0.00030136,5]
[326671657,1715211093214,-1666.16,0.00030136,5]
[326671658,1715211093224,-791.92,0.00030136,5]
[326671659,1715211093235,-2851.63,0.00030136,5]
[326671660,1715211093246,-571.1,0.00030136,5]
[326671661,1715211093256,-500.0,0.00030136,5]
[326671662,1715211093266,-500.0,0.00030136,5]
[326671663,1715211093277,-150.0,0.00030136,5]
[326671664,1715211093289,-642.22,0.00030136,5]
[326671665,1715211093299,-525.85,0.00030136,5]
[326671666,1715211093309,-1058.32,0.00030136,5]
[326671667,1715211093320,-583.26,0.00030136,5]
[326671668,1715211093330,-298.58,0.00030136,5]
[326671669,1715211093339,-500.0,0.00030136,5]
[326671670,1715211093350,-500.0,0.00030136,5]
[326671671,1715211093359,-500.0,0.00030136,5]
[326671672,1715211093369,-513.55,0.00030136,5]
[326671673,1715211093379,-500.0,0.00030136,5]
[326671674,1715211093389,-500.0,0.00030136,5]
[326671675,1715211093399,-500.0,0.00030136,5]
[326671676,1715211093409,-500.0,0.00030136,5]
[326671677,1715211093418,-356.72,0.00030136,5]
[326671678,1715211093428,-950.58,0.00030136,5]
[326671679,1715211093437,-947.25,0.00030136,5]
[326671680,1715211093447,-677.43,0.00030136,5]
[326671681,1715211093457,-500.0,0.00030136,5]
[326671682,1715211093467,-500.0,0.00030136,5]
[326671683,1715211093476,-713.48,0.00030136,5]
[326671684,1715211093486,-500.0,0.00030136,5]
[326671685,1715211093495,-500.0,0.00030136,5]
[326671686,1715211093505,-500.0,0.00030136,5]
[326671687,1715211093515,-1739.82,0.00030136,5]
[326671688,1715211093524,-500.0,0.00030136,5]
[326671689,1715211093534,-2303.36,0.00030136,5]
[326671690,1715211093543,-243.5692952,0.00030136,5]
[326671696,1715212247341,-258.128903,0.00010117,2]
[326671698,1715212247354,-266.27999998,0.00010117,2]
[326671700,1715212247367,-187.24421523,0.00010117,2]
[326671702,1715212247376,-565.20166757,0.00010117,2]
[326671704,1715212247387,-1230.44713197,0.00010117,2]
[326671707,1715212247406,-574.25050338,0.00010117,2]
[326671710,1715212247417,-319.50034176,0.00010117,2]
[326671713,1715212247429,-367.64629719,0.00010117,2]
[326671716,1715212247439,-155.0,0.00010117,2]
[326671719,1715212247449,-522.0096725,0.00010118,2]
[326671721,1715212247463,-2408.8635587,0.00010118,2]
[326671723,1715212247478,-5039.98851017,0.00010118,2]
[326671725,1715212247490,-15355.90222253,0.00010118,2]
[326671727,1715212247500,-3657.94892295,0.00010119,2]